[Event "European Womens-ch 2025"]
[Site "Rhodes"]
[Date "2025.04.09"]
[Round "9.31"]
[White "Hapala, Elisabeth"]
[Black "Fataliyeva, Ulviyya"]
[Result "0-1"]
[Annotator "ChessBase"]
[ECO "B15"]
[WhiteElo "2092"]
[BlackElo "2387"]
[PlyCount "86"]
[EventDate "2025.03.29"]
[EventType "swiss"]
[EventCountry "GRE"]
[SourceTitle "playchess.com"]
[Source "ChessBase"]
[SourceQuality "1"]
[TimeControl "40/5400+30:1800+30"]

1. e4 {[%emt 0:00:00]} c6 {[%emt 0:01:45]} 2. d4 {[%emt 0:00:06]} d5 {[%emt 0:00:05]} 3. Nc3 {[%emt 0:00:04]} dxe4 {[%emt 0:00:04]} 4. Nxe4 {[%emt 0:00:04]} Nf6 {[%emt 0:00:04]} 5. Nxf6+ {[%emt 0:00:05]} exf6 {[%emt 0:00:05]} 6. c3 {[%emt 0:00:06]} Bd6 {[%emt 0:00:08]} 7. Bd3 {[%emt 0:00:11]} O-O {[%emt 0:00:09]} 8. Qc2 {[%emt 0:00:07]} Re8+ {[%emt 0:00:06]} 9. Ne2 {[%emt 0:00:04]} h6 {[%emt 0:00:05]} 10. O-O {[%emt 0:00:38]} Nd7 {[%emt 0:00:11]} 11. Bd2 {[%emt 0:00:48]} Nf8 {[%emt 0:00:44]} 12. Rae1 {[%emt 0:01:13]} Be6 {[%emt 0:00:37]} 13. Bf4 {[%emt 0:23:54]} Rc8 {[%emt 0:07:50]} 14. Bxd6 {[%emt 0:08:59]} Qxd6 {[%emt 0:01:16]} 15. f4 {[%emt 0:01:41]} c5 {[%emt 0:02:01]} 16. f5 {[%emt 0:02:13]} Bd5 {[%emt 0:10:20]} 17. dxc5 {[%emt 0:12:41]} Qxc5+ {[%emt 0:02:01]} 18. Nd4 {[%emt 0:01:05]} Re5 {[%emt 0:01:57]} 19. a3 {[%emt 0:03:11]} Nd7 {[%emt 0:02:29]} 20. Qf2 {[%emt 0:02:50]} Qe7 {[%emt 0:08:51]} 21. Re2 {[%emt 0:09:49]} Nc5 {[%emt 0:01:27]} 22. Rxe5 {[%emt 0:16:29]} fxe5 {[%emt 0:01:28]} 23. f6 {[%emt 0:00:11]} Nxd3 {[%emt 0:15:38]} 24. fxe7 {[%emt 0:07:57]} Nxf2 {[%emt 0:00:14]} 25. Nf5 {[%emt 0:00:12]} Ne4 {[%emt 0:09:35]} 26. Rd1 {[%emt 0:00:43]} Nf6 {[%emt 0:00:10]} 27. c4 {[%emt 0:07:36]} Be6 {[%emt 0:00:16]} 28. Rd8+ {[%emt 0:00:16]} Kh7 {[%emt 0:00:10]} 29. Nd6 {[%emt 0:00:56]} Rc7 {[%emt 0:00:16]} 30. e8=Q {[%emt 0:00:43]} Nxe8 {[%emt 0:00:04]} 31. Rxe8 {[%emt 0:00:07]} b6 {[%emt 0:01:00]} 32. b4 {[%emt 0:00:52]} Kg6 {[%emt 0:03:20]} 33. Kf2 {[%emt 0:00:20]} Rc6 {[%emt 0:02:08]} 34. Rd8 {[%emt 0:00:37]} f5 {[%emt 0:03:23]} 35. Nb5 {[%emt 0:00:33]} Rxc4 {[%emt 0:01:05]} 36. Nxa7 {[%emt 0:00:07]} Rc2+ {[%emt 0:00:11]} 37. Kg1 {[%emt 0:00:54]} f4 {[%emt 0:02:30]} 38. Rd6 {[%emt 0:00:14]} Kf5 {[%emt 0:00:36]} 39. h3 {[%emt 0:00:46]} e4 {[%emt 0:00:54]} 40. Nb5 {[%emt 0:00:00]} Rc1+ {[%emt 0:00:00]} 41. Kh2 {[%emt 0:01:36]} Ke5 {[%emt 0:01:10]} 42. Rxb6 {[%emt 0:11:29]} e3 {[%emt 0:00:08]} 43. Nd4 {[%emt 0:00:15]} Bd5 {[%emt 0:00:25]} 0-1

[Event "European Womens-ch 2025"]
[Site "Rhodes"]
[Date "2025.04.09"]
[Round "9.32"]
[White "Piddubna, Bozhena"]
[Black "Guichard, Pauline"]
[Result "0-1"]
[Annotator "ChessBase"]
[ECO "E46"]
[WhiteElo "2145"]
[BlackElo "2355"]
[PlyCount "126"]
[EventDate "2025.03.29"]
[EventType "swiss"]
[EventCountry "GRE"]
[SourceTitle "playchess.com"]
[Source "ChessBase"]
[SourceQuality "1"]
[TimeControl "40/5400+30:1800+30"]

1. d4 {[%emt 0:00:03]} Nf6 {[%emt 0:00:04]} 2. c4 {[%emt 0:00:38]} e6 {[%emt 0:00:06]} 3. Nc3 {[%emt 0:00:17]} Bb4 {[%emt 0:00:07]} 4. e3 {[%emt 0:00:06]} O-O {[%emt 0:00:12]} 5. Bd2 {[%emt 0:00:14]} Re8 {[%emt 0:01:29]} 6. Nf3 {[%emt 0:01:29]} Nc6 {[%emt 0:07:53]} 7. Bd3 {[%emt 0:07:36]} e5 {[%emt 0:07:39]} 8. dxe5 {[%emt 0:12:01]} Ng4 {[%emt 0:02:56]} 9. Qc2 {[%emt 0:11:01]} h6 {[%emt 0:00:32]} 10. e6 {[%emt 0:07:17]} dxe6 {[%emt 0:01:02]} 11. h3 {[%emt 0:00:40]} Nge5 {[%emt 0:07:30]} 12. Nxe5 {[%emt 0:00:24]} Nxe5 {[%emt 0:00:10]} 13. Be2 {[%emt 0:00:01]} Qh4 {[%emt 0:09:30]} 14. g3 {[%emt 0:03:41]} Qe7 {[%emt 0:03:18]} 15. a3 {[%emt 0:02:19]} Bd6 {[%emt 0:03:24]} 16. Ne4 {[%emt 0:01:18]} b6 {[%emt 0:00:36]} 17. f4 {[%emt 0:06:21]} Ng6 {[%emt 0:04:22]} 18. Bf3 {[%emt 0:03:14]} Rb8 {[%emt 0:00:29]} 19. Nxd6 {[%emt 0:04:15]} cxd6 {[%emt 0:01:03]} 20. O-O {[%emt 0:01:19]} Bb7 {[%emt 0:00:50]} 21. e4 {[%emt 0:00:29]} Rbc8 {[%emt 0:06:28]} 22. Qd3 {[%emt 0:02:06]} Qc7 {[%emt 0:02:13]} 23. Rac1 {[%emt 0:03:14]} Ba6 {[%emt 0:04:01]} 24. b3 {[%emt 0:03:41]} Ne7 {[%emt 0:00:29]} 25. Qe3 {[%emt 0:06:46]} Qb8 {[%emt 0:01:03]} 26. Rfd1 {[%emt 0:00:49]} b5 {[%emt 0:07:06]} 27. cxb5 {[%emt 0:01:12]} Rxc1 {[%emt 0:00:15]} 28. Rxc1 {[%emt 0:00:40]} Bxb5 {[%emt 0:00:09]} 29. Be1 {[%emt 0:02:58]} Bc6 {[%emt 0:05:02]} 30. Bb4 {[%emt 0:01:48]} Rd8 {[%emt 0:02:47]} 31. Qd4 {[%emt 0:02:56]} Qb7 {[%emt 0:01:34]} 32. Bc3 {[%emt 0:04:20]} f6 {[%emt 0:00:05]} 33. Bb4 {[%emt 0:05:46]} Kh8 {[%emt 0:02:41]} 34. Bg2 {[%emt 0:02:12]} Qa8 {[%emt 0:09:36]} 35. Kh2 {[%emt 0:01:02]} a5 {[%emt 0:00:20]} 36. Bc3 {[%emt 0:00:57]} Rd7 {[%emt 0:02:19]} 37. Rc2 {[%emt 0:01:42]} Bb7 {[%emt 0:04:32]} 38. Rd2 {[%emt 0:01:01]} e5 {[%emt 0:04:53]} 39. fxe5 {[%emt 0:01:07]} Nc6 {[%emt 0:00:09]} 40. Qb6 {[%emt 0:00:00]} fxe5 {[%emt 0:00:00]} 41. Rf2 {[%emt 0:04:06]} Qg8 {[%emt 0:06:58]} 42. Bf1 {[%emt 0:05:57]} Rf7 {[%emt 0:00:10]} 43. Bc4 {[%emt 0:00:43]} Rxf2+ {[%emt 0:00:04]} 44. Qxf2 {[%emt 0:00:04]} Qc8 {[%emt 0:03:12]} 45. Bd2 {[%emt 0:08:07]} Nd4 {[%emt 0:02:30]} 46. Be3 {[%emt 0:03:39]} Bxe4 {[%emt 0:03:10]} 47. Bxd4 {[%emt 0:00:05]} exd4 {[%emt 0:00:04]} 48. Qxd4 {[%emt 0:00:06]} Qf5 {[%emt 0:01:50]} 49. Be2 {[%emt 0:02:04]} d5 {[%emt 0:01:45]} 50. b4 {[%emt 0:01:20]} axb4 {[%emt 0:01:27]} 51. axb4 {[%emt 0:00:11]} Qg5 {[%emt 0:00:25]} 52. Qc3 {[%emt 0:04:26]} Qg6 {[%emt 0:03:55]} 53. Qd4 {[%emt 0:01:34]} Qg5 {[%emt 0:07:05]} 54. Qc3 {[%emt 0:00:07]} Qf5 {[%emt 0:00:51]} 55. Qd4 {[%emt 0:00:36]} Qf8 {[%emt 0:00:43]} 56. b5 {[%emt 0:03:11]} Qa3 {[%emt 0:00:47]} 57. b6 {[%emt 0:02:42]} Qc1 {[%emt 0:02:57]} 58. Bd1 {[%emt 0:00:01]} Qb1 {[%emt 0:00:07]} 59. g4 {[%emt 0:00:31]} Qa2+ {[%emt 0:00:41]} 60. Kg3 {[%emt 0:00:03]} Qg2+ {[%emt 0:00:12]} 61. Kh4 {[%emt 0:00:03]} Kh7 {[%emt 0:00:51]} 62. Qe3 {[%emt 0:02:04]} g5+ {[%emt 0:00:24]} 63. Kh5 {[%emt 0:00:03]} Qxh3+ {[%emt 0:00:31]} 0-1

[Event "European Womens-ch 2025"]
[Site "Rhodes"]
[Date "2025.04.09"]
[Round "9.33"]
[White "Cornileau, Juliette"]
[Black "Gaponenko, Inna"]
[Result "0-1"]
[Annotator "ChessBase"]
[ECO "B08"]
[WhiteElo "2130"]
[BlackElo "2349"]
[PlyCount "72"]
[EventDate "2025.03.29"]
[EventType "swiss"]
[EventCountry "GRE"]
[SourceTitle "playchess.com"]
[Source "ChessBase"]
[SourceQuality "1"]
[TimeControl "40/5400+30:1800+30"]

1. e4 {[%emt 0:02:09]} d6 {[%emt 0:00:05]} 2. d4 {[%emt 0:00:07]} Nf6 {[%emt 0:00:05]} 3. Nc3 {[%emt 0:01:14]} g6 {[%emt 0:00:12]} 4. Nf3 {[%emt 0:09:33]} Bg7 {[%emt 0:00:25]} 5. h3 {[%emt 0:03:04]} O-O {[%emt 0:01:00]} 6. Be3 {[%emt 0:00:06]} c6 {[%emt 0:16:02]} 7. Qd2 {[%emt 0:03:33]} b5 {[%emt 0:07:53]} 8. a3 {[%emt 0:00:31]} Qc7 {[%emt 0:06:27]} 9. Bh6 {[%emt 0:06:55]} e5 {[%emt 0:01:54]} 10. Bxg7 {[%emt 0:14:06]} Kxg7 {[%emt 0:00:14]} 11. Rd1 {[%emt 0:00:16]} a5 {[%emt 0:03:51]} 12. Bd3 {[%emt 0:04:28]} b4 {[%emt 0:14:39]} 13. dxe5 {[%emt 0:03:51]} dxe5 {[%emt 0:00:12]} 14. Nb1 {[%emt 0:00:32]} c5 {[%emt 0:01:28]} 15. Qe2 {[%emt 0:01:02]} Nc6 {[%emt 0:07:16]} 16. Nbd2 {[%emt 0:03:51]} bxa3 {[%emt 0:03:24]} 17. bxa3 {[%emt 0:00:06]} Nd4 {[%emt 0:00:19]} 18. Qe3 {[%emt 0:13:18]} Ba6 {[%emt 0:11:11]} 19. c3 {[%emt 0:01:02]} Nxf3+ {[%emt 0:14:46]} 20. Nxf3 {[%emt 0:00:12]} Bxd3 {[%emt 0:00:06]} 21. Rxd3 {[%emt 0:00:38]} c4 {[%emt 0:00:23]} 22. Rd1 {[%emt 0:02:55]} Rfe8 {[%emt 0:08:12]} 23. O-O {[%emt 0:00:11]} Qc6 {[%emt 0:00:03]} 24. Rfe1 {[%emt 0:00:30]} Rab8 {[%emt 0:00:02]} 25. Nd2 {[%emt 0:06:45]} Rbd8 {[%emt 0:00:45]} 26. Qe2 {[%emt 0:01:02]} Rd3 {[%emt 0:01:06]} 27. Nxc4 {[%emt 0:00:59]} Rxc3 {[%emt 0:00:05]} 28. Nd6 {[%emt 0:03:32]} Re6 {[%emt 0:00:02]} 29. Nb5 {[%emt 0:18:32]} Rc4 {[%emt 0:02:53]} 30. Nd6 {[%emt 0:00:00]} Rc2 {[%emt 0:00:00]} 31. Qd3 {[%emt 0:00:00]} Rc3 {[%emt 0:00:00]} 32. Qd2 {[%emt 0:00:00]} Rxa3 {[%emt 0:00:27]} 33. Qb2 {[%emt 0:00:00]} Rc3 {[%emt 0:00:38]} 34. Rd2 {[%emt 0:00:00]} a4 {[%emt 0:00:39]} 35. Red1 {[%emt 0:01:37]} Rb3 {[%emt 0:00:20]} 36. Qc2 {[%emt 0:00:45]} Rxd6 {[%emt 0:00:12]} 0-1

[Event "European Womens-ch 2025"]
[Site "Rhodes"]
[Date "2025.04.09"]
[Round "9.34"]
[White "Berke, Ana"]
[Black "Sliwicka, Alicja"]
[Result "0-1"]
[Annotator "ChessBase"]
[ECO "B31"]
[WhiteElo "2119"]
[BlackElo "2342"]
[PlyCount "70"]
[EventDate "2025.03.29"]
[EventType "swiss"]
[EventCountry "GRE"]
[SourceTitle "playchess.com"]
[Source "ChessBase"]
[SourceQuality "1"]
[TimeControl "40/5400+30:1800+30"]

1. e4 {[%emt 0:00:02]} c5 {[%emt 0:00:07]} 2. Nf3 {[%emt 0:00:11]} Nc6 {[%emt 0:00:05]} 3. Bb5 {[%emt 0:00:13]} g6 {[%emt 0:00:07]} 4. O-O {[%emt 0:00:50]} Bg7 {[%emt 0:00:04]} 5. c3 {[%emt 0:02:54]} e5 {[%emt 0:00:27]} 6. b4 {[%emt 0:03:00]} cxb4 {[%emt 0:06:20]} 7. cxb4 {[%emt 0:03:03]} Nge7 {[%emt 0:02:57]} 8. Bb2 {[%emt 0:03:26]} Nd4 {[%emt 0:04:48]} 9. Nxd4 {[%emt 0:03:24]} exd4 {[%emt 0:00:06]} 10. f4 {[%emt 0:05:22]} Qb6 {[%emt 0:02:29]} 11. Bd3 {[%emt 0:02:39]} d6 {[%emt 0:06:27]} 12. f5 {[%emt 0:06:11]} Nc6 {[%emt 0:02:26]} 13. f6 {[%emt 0:02:25]} Bh6 {[%emt 0:00:42]} 14. Na3 {[%emt 0:05:29]} Be6 {[%emt 0:06:25]} 15. Nc2 {[%emt 0:04:55]} Rc8 {[%emt 0:14:18]} 16. Rc1 {[%emt 0:18:03]} Bxa2 {[%emt 0:06:44]} 17. b5 {[%emt 0:03:18]} Ne5 {[%emt 0:05:47]} 18. Bxd4 {[%emt 0:01:42]} Qa5 {[%emt 0:01:41]} 19. Ne3 {[%emt 0:08:09]} Rxc1 {[%emt 0:05:37]} 20. Qxc1 {[%emt 0:01:11]} O-O {[%emt 0:06:32]} 21. Be2 {[%emt 0:00:27]} Be6 {[%emt 0:00:19]} 22. Qb2 {[%emt 0:01:02]} Ra8 {[%emt 0:04:10]} 23. h4 {[%emt 0:03:34]} Nd7 {[%emt 0:02:30]} 24. g4 {[%emt 0:03:08]} Nc5 {[%emt 0:00:53]} 25. g5 {[%emt 0:00:35]} Bf8 {[%emt 0:00:04]} 26. Bf3 {[%emt 0:01:44]} Nb3 {[%emt 0:00:46]} 27. Bc3 {[%emt 0:01:03]} Qxb5 {[%emt 0:01:04]} 28. Rb1 {[%emt 0:01:23]} a5 {[%emt 0:01:48]} 29. Nd5 {[%emt 0:00:55]} a4 {[%emt 0:02:08]} 30. Kg2 {[%emt 0:00:25]} Bxd5 {[%emt 0:00:39]} 31. exd5 {[%emt 0:00:06]} Qc4 {[%emt 0:00:56]} 32. Kg3 {[%emt 0:00:19]} b5 {[%emt 0:02:28]} 33. Qa3 {[%emt 0:00:29]} Re8 {[%emt 0:03:01]} 34. Qb4 {[%emt 0:01:57]} Qd3 {[%emt 0:00:03]} 35. Kf2 {[%emt 0:01:13]} Qxb1 {[%emt 0:00:17]} 0-1

[Event "European Womens-ch 2025"]
[Site "Rhodes"]
[Date "2025.04.09"]
[Round "9.35"]
[White "Koridze, Lile"]
[Black "Kochavi, Dana"]
[Result "0-1"]
[Annotator "ChessBase"]
[ECO "E97"]
[WhiteElo "2115"]
[BlackElo "2301"]
[PlyCount "76"]
[EventDate "2025.03.29"]
[EventType "swiss"]
[EventCountry "GRE"]
[SourceTitle "playchess.com"]
[Source "ChessBase"]
[SourceQuality "1"]
[TimeControl "40/5400+30:1800+30"]

1. d4 {[%emt 0:00:02]} Nf6 {[%emt 0:00:05]} 2. c4 {[%emt 0:00:03]} g6 {[%emt 0:00:03]} 3. Nc3 {[%emt 0:00:03]} Bg7 {[%emt 0:00:05]} 4. e4 {[%emt 0:00:04]} d6 {[%emt 0:00:03]} 5. Nf3 {[%emt 0:00:03]} O-O {[%emt 0:00:05]} 6. Be2 {[%emt 0:00:04]} e5 {[%emt 0:00:26]} 7. O-O {[%emt 0:00:20]} Nc6 {[%emt 0:00:12]} 8. Be3 {[%emt 0:00:23]} Ng4 {[%emt 0:00:11]} 9. Bg5 {[%emt 0:00:04]} f6 {[%emt 0:00:05]} 10. Bc1 {[%emt 0:00:04]} f5 {[%emt 0:00:12]} 11. Bg5 {[%emt 0:00:53]} Bf6 {[%emt 0:00:06]} 12. Bxf6 {[%emt 0:05:17]} Qxf6 {[%emt 0:00:07]} 13. exf5 {[%emt 0:15:06]} Bxf5 {[%emt 0:03:02]} 14. h3 {[%emt 0:01:11]} Nh6 {[%emt 0:00:05]} 15. Nd5 {[%emt 0:00:51]} Qg7 {[%emt 0:00:50]} 16. dxe5 {[%emt 0:02:48]} Nxe5 {[%emt 0:02:20]} 17. Nxe5 {[%emt 0:14:46]} dxe5 {[%emt 0:00:15]} 18. Qb3 {[%emt 0:02:11]} c6 {[%emt 0:02:15]} 19. Ne3 {[%emt 0:00:31]} Be6 {[%emt 0:07:12]} 20. Rad1 {[%emt 0:02:41]} Rf4 {[%emt 0:06:56]} 21. Rd6 {[%emt 0:06:16]} Qe7 {[%emt 0:03:42]} 22. Rfd1 {[%emt 0:10:03]} Nf7 {[%emt 0:02:39]} 23. R6d2 {[%emt 0:04:27]} h5 {[%emt 0:11:26]} 24. Nf1 {[%emt 0:11:55]} Ng5 {[%emt 0:02:08]} 25. Qc3 {[%emt 0:09:31]} Rxf2 {[%emt 0:09:02]} 26. Qg3 {[%emt 0:03:00]} Rf4 {[%emt 0:02:40]} 27. h4 {[%emt 0:03:32]} Rxh4 {[%emt 0:01:48]} 28. Qxe5 {[%emt 0:01:11]} Re4 {[%emt 0:00:20]} 29. Qg3 {[%emt 0:00:49]} Rf8 {[%emt 0:03:28]} 30. Bf3 {[%emt 0:02:51]} h4 {[%emt 0:02:12]} 31. Qd6 {[%emt 0:02:13]} Nxf3+ {[%emt 0:00:07]} 32. gxf3 {[%emt 0:00:05]} Qxd6 {[%emt 0:00:04]} 33. Rxd6 {[%emt 0:00:05]} Rxf3 {[%emt 0:00:39]} 34. b3 {[%emt 0:01:24]} Rg4+ {[%emt 0:00:49]} 35. Kh2 {[%emt 0:00:14]} Rf2+ {[%emt 0:00:40]} 36. Kh3 {[%emt 0:01:12]} Re4+ {[%emt 0:00:15]} 37. Rxe6 {[%emt 0:00:11]} Rxe6 {[%emt 0:00:04]} 38. Kxh4 {[%emt 0:00:04]} Rxa2 {[%emt 0:01:13]} 0-1

[Event "European Womens-ch 2025"]
[Site "Rhodes"]
[Date "2025.04.09"]
[Round "9.36"]
[White "Korenova, Martina"]
[Black "Allahverdiyeva, Ayan"]
[Result "0-1"]
[Annotator "ChessBase"]
[ECO "B51"]
[WhiteElo "2045"]
[BlackElo "2266"]
[PlyCount "62"]
[EventDate "2025.03.29"]
[EventType "swiss"]
[EventCountry "GRE"]
[SourceTitle "playchess.com"]
[Source "ChessBase"]
[SourceQuality "1"]
[TimeControl "40/5400+30:1800+30"]

1. e4 {[%emt 0:00:09]} c5 {[%emt 0:00:04]} 2. Nf3 {[%emt 0:00:36]} d6 {[%emt 0:00:05]} 3. Bb5+ {[%emt 0:00:31]} Nd7 {[%emt 0:00:08]} 4. O-O {[%emt 0:00:26]} a6 {[%emt 0:00:26]} 5. Bd3 {[%emt 0:00:23]} e6 {[%emt 0:00:26]} 6. Re1 {[%emt 0:01:20]} g5 {[%emt 0:00:06]} 7. Kh1 {[%emt 0:07:47]} g4 {[%emt 0:03:31]} 8. Ng1 {[%emt 0:00:05]} h5 {[%emt 0:04:48]} 9. Bf1 {[%emt 0:05:54]} Ngf6 {[%emt 0:03:32]} 10. c3 {[%emt 0:01:52]} b5 {[%emt 0:04:35]} 11. d3 {[%emt 0:17:22]} Bb7 {[%emt 0:02:36]} 12. Qc2 {[%emt 0:00:28]} Qc7 {[%emt 0:04:08]} 13. a4 {[%emt 0:02:19]} h4 {[%emt 0:02:57]} 14. axb5 {[%emt 0:01:46]} axb5 {[%emt 0:00:04]} 15. Rxa8+ {[%emt 0:00:06]} Bxa8 {[%emt 0:00:04]} 16. f4 {[%emt 0:04:31]} d5 {[%emt 0:08:57]} 17. Na3 {[%emt 0:06:12]} dxe4 {[%emt 0:11:51]} 18. Nxb5 {[%emt 0:16:39]} Qc6 {[%emt 0:04:40]} 19. d4 {[%emt 0:09:42]} e3 {[%emt 0:02:13]} 20. Rxe3 {[%emt 0:00:50]} c4 {[%emt 0:06:39]} 21. Na3 {[%emt 0:08:55]} Bxa3 {[%emt 0:07:27]} 22. bxa3 {[%emt 0:00:04]} Nh5 {[%emt 0:00:26]} 23. Ne2 {[%emt 0:02:33]} h3 {[%emt 0:01:14]} 24. Ng3 {[%emt 0:01:55]} Nxf4 {[%emt 0:00:26]} 25. Re4 {[%emt 0:01:41]} hxg2+ {[%emt 0:01:39]} 26. Bxg2 {[%emt 0:00:03]} Nxg2 {[%emt 0:00:09]} 27. Qxg2 {[%emt 0:01:55]} Nf6 {[%emt 0:00:51]} 28. Re2 {[%emt 0:00:44]} Qa6 {[%emt 0:00:30]} 29. Ne4 {[%emt 0:00:19]} Nxe4 {[%emt 0:00:07]} 30. Rxe4 {[%emt 0:00:02]} Bd5 {[%emt 0:01:17]} 31. Qxg4 {[%emt 0:00:40]} Qb7 {[%emt 0:00:32]} 0-1

[Event "European Womens-ch 2025"]
[Site "Rhodes"]
[Date "2025.04.09"]
[Round "9.37"]
[White "Deak-Sala, Emilia"]
[Black "Wikar, Martyna"]
[Result "0-1"]
[Annotator "ChessBase"]
[ECO "A09"]
[WhiteElo "2112"]
[BlackElo "2239"]
[PlyCount "104"]
[EventDate "2025.03.29"]
[EventType "swiss"]
[EventCountry "GRE"]
[SourceTitle "playchess.com"]
[Source "ChessBase"]
[SourceQuality "1"]
[TimeControl "40/5400+30:1800+30"]

1. Nf3 {[%emt 0:02:37]} c5 {[%emt 0:00:17]} 2. g3 {[%emt 0:00:04]} Nc6 {[%emt 0:00:36]} 3. Bg2 {[%emt 0:00:08]} Nf6 {[%emt 0:00:21]} 4. O-O {[%emt 0:00:17]} d5 {[%emt 0:00:52]} 5. c4 {[%emt 0:00:14]} d4 {[%emt 0:03:27]} 6. d3 {[%emt 0:00:10]} e5 {[%emt 0:01:29]} 7. e3 {[%emt 0:00:06]} Be7 {[%emt 0:00:54]} 8. exd4 {[%emt 0:00:09]} exd4 {[%emt 0:00:06]} 9. Bf4 {[%emt 0:00:26]} O-O {[%emt 0:00:50]} 10. Ne5 {[%emt 0:00:05]} Nxe5 {[%emt 0:04:37]} 11. Bxe5 {[%emt 0:00:08]} Bd6 {[%emt 0:03:25]} 12. Bxf6 {[%emt 0:00:09]} Qxf6 {[%emt 0:01:24]} 13. Nd2 {[%emt 0:00:11]} Qh6 {[%emt 0:01:12]} 14. f4 {[%emt 0:11:05]} Rb8 {[%emt 0:10:06]} 15. Ne4 {[%emt 0:03:43]} Bf5 {[%emt 0:04:43]} 16. Qc2 {[%emt 0:07:52]} Rfe8 {[%emt 0:04:37]} 17. Rae1 {[%emt 0:03:34]} Re7 {[%emt 0:06:49]} 18. Qf2 {[%emt 0:05:30]} Rbe8 {[%emt 0:03:00]} 19. Re2 {[%emt 0:10:49]} Bc7 {[%emt 0:03:24]} 20. Rfe1 {[%emt 0:06:19]} Bg4 {[%emt 0:15:04]} 21. Bf3 {[%emt 0:00:45]} Bxf3 {[%emt 0:00:06]} 22. Qxf3 {[%emt 0:00:08]} Qc6 {[%emt 0:01:22]} 23. f5 {[%emt 0:07:13]} f6 {[%emt 0:00:30]} 24. Rf1 {[%emt 0:04:48]} a6 {[%emt 0:04:48]} 25. g4 {[%emt 0:06:55]} b5 {[%emt 0:01:16]} 26. b3 {[%emt 0:00:07]} Rxe4 {[%emt 0:01:55]} 27. Rxe4 {[%emt 0:00:30]} Rxe4 {[%emt 0:02:07]} 28. Qxe4 {[%emt 0:00:39]} Qxe4 {[%emt 0:00:07]} 29. dxe4 {[%emt 0:00:07]} b4 {[%emt 0:04:23]} 30. h3 {[%emt 0:00:54]} Kf7 {[%emt 0:00:23]} 31. Kf2 {[%emt 0:01:35]} a5 {[%emt 0:02:23]} 32. a3 {[%emt 0:03:10]} bxa3 {[%emt 0:00:57]} 33. Ra1 {[%emt 0:00:09]} Ke7 {[%emt 0:02:45]} 34. Rxa3 {[%emt 0:00:57]} Kd6 {[%emt 0:00:24]} 35. Ra1 {[%emt 0:01:18]} Ke5 {[%emt 0:00:35]} 36. Kf3 {[%emt 0:00:06]} h6 {[%emt 0:00:36]} 37. h4 {[%emt 0:07:52]} Bd8 {[%emt 0:00:13]} 38. Ra2 {[%emt 0:00:04]} Bc7 {[%emt 0:07:15]} 39. Ra4 {[%emt 0:16:59]} Bd8 {[%emt 0:00:43]} 40. Ra2 {[%emt 0:00:00]} Bc7 {[%emt 0:00:00]} 41. g5 {[%emt 0:10:48]} fxg5 {[%emt 0:01:32]} 42. hxg5 {[%emt 0:00:48]} hxg5 {[%emt 0:00:23]} 43. Rh2 {[%emt 0:00:27]} g4+ {[%emt 0:01:06]} 44. Kxg4 {[%emt 0:00:03]} d3 {[%emt 0:05:56]} 45. Kf3 {[%emt 0:01:10]} Kd4 {[%emt 0:00:54]} 46. Rg2 {[%emt 0:01:22]} Be5 {[%emt 0:02:28]} 47. Ra2 {[%emt 0:01:51]} Kc3 {[%emt 0:06:30]} 48. Rxa5 {[%emt 0:02:31]} Bd4 {[%emt 0:01:29]} 49. e5 {[%emt 0:02:48]} Kb2 {[%emt 0:01:40]} 50. f6 {[%emt 0:12:17]} d2 {[%emt 0:00:22]} 51. Ra2+ {[%emt 0:02:04]} Kxa2 {[%emt 0:00:05]} 52. Ke2 {[%emt 0:00:02]} Bxe5 {[%emt 0:00:08]} 0-1

[Event "European Womens-ch 2025"]
[Site "Rhodes"]
[Date "2025.04.09"]
[Round "9.38"]
[White "Caku, Kler"]
[Black "Calzetta Ruiz, Monica"]
[Result "0-1"]
[Annotator "ChessBase"]
[ECO "B35"]
[WhiteElo "2036"]
[BlackElo "2230"]
[PlyCount "92"]
[EventDate "2025.03.29"]
[EventType "swiss"]
[EventCountry "GRE"]
[SourceTitle "playchess.com"]
[Source "ChessBase"]
[SourceQuality "1"]
[TimeControl "40/5400+30:1800+30"]

1. e4 {[%emt 0:00:03]} c5 {[%emt 0:00:06]} 2. Nf3 {[%emt 0:00:06]} Nc6 {[%emt 0:00:05]} 3. d4 {[%emt 0:00:05]} cxd4 {[%emt 0:00:04]} 4. Nxd4 {[%emt 0:00:05]} g6 {[%emt 0:00:26]} 5. Nc3 {[%emt 0:00:37]} Bg7 {[%emt 0:00:29]} 6. Be3 {[%emt 0:00:08]} Nf6 {[%emt 0:00:18]} 7. Bc4 {[%emt 0:02:03]} O-O {[%emt 0:00:39]} 8. Bb3 {[%emt 0:01:46]} d5 {[%emt 0:00:22]} 9. Nxc6 {[%emt 0:08:34]} bxc6 {[%emt 0:00:23]} 10. exd5 {[%emt 0:01:27]} cxd5 {[%emt 0:04:35]} 11. O-O {[%emt 0:08:43]} Bb7 {[%emt 0:10:29]} 12. Bd4 {[%emt 0:04:33]} e6 {[%emt 1:18:34]} 13. Qf3 {[%emt 0:04:24]} Nd7 {[%emt 0:00:00]} 14. Bxg7 {[%emt 0:05:22]} Kxg7 {[%emt 0:00:00]} 15. Rad1 {[%emt 0:07:43]} Qf6 {[%emt 0:00:00]} 16. Qxf6+ {[%emt 0:52:51]} Nxf6 {[%emt 0:00:00]} 17. Rfe1 Rfc8 {[%emt 0:00:00]} 18. Rd4 Bc6 {[%emt 0:03:00]} 19. f3 {[%emt 0:00:00]} Rab8 {[%emt 0:00:00]} 20. Nd1 {[%emt 0:00:00]} Nd7 {[%emt 0:00:00]} 21. c3 {[%emt 0:00:00]} a5 {[%emt 0:00:00]} 22. Kf2 {[%emt 0:00:00]} Nc5 {[%emt 0:00:00]} 23. Bc2 {[%emt 0:00:00]} a4 {[%emt 0:00:00]} 24. h4 {[%emt 0:00:00]} Rb6 {[%emt 0:00:00]} 25. h5 {[%emt 0:00:00]} Rcb8 {[%emt 0:00:00]} 26. hxg6 {[%emt 0:00:00]} hxg6 {[%emt 0:00:00]} 27. Rh4 {[%emt 0:00:00]} Rxb2 {[%emt 0:00:00]} 28. Nxb2 {[%emt 0:00:00]} Rxb2 {[%emt 0:00:00]} 29. Re2 {[%emt 0:00:00]} Rxa2 {[%emt 0:00:00]} 30. Rb4 {[%emt 0:00:00]} a3 {[%emt 0:00:00]} 31. Rb6 {[%emt 0:00:00]} Bd7 {[%emt 0:00:21]} 32. Rb1 {[%emt 0:08:00]} e5 33. Ke3 {[%emt 0:00:00]} Be6 {[%emt 0:02:31]} 34. Bd3 {[%emt 0:00:00]} d4+ {[%emt 0:01:00]} 35. cxd4 exd4+ {[%emt 0:00:08]} 36. Kxd4 {[%emt 0:00:00]} Rxe2 {[%emt 0:00:56]} 37. Bxe2 {[%emt 0:00:00]} a2 {[%emt 0:00:28]} 38. Re1 {[%emt 0:00:00]} Nb3+ {[%emt 0:00:52]} 39. Kc3 {[%emt 0:00:14]} a1=Q+ {[%emt 0:00:31]} 40. Rxa1 {[%emt 0:00:00]} Nxa1 {[%emt 0:00:00]} 41. Bd1 {[%emt 0:00:16]} Kf6 {[%emt 0:01:08]} 42. Kb2 {[%emt 0:07:49]} Nb3 {[%emt 0:19:07]} 43. Bxb3 {[%emt 0:00:12]} Bxb3 {[%emt 0:00:03]} 44. Kxb3 {[%emt 0:00:09]} Ke5 {[%emt 0:00:02]} 45. Kc4 {[%emt 0:02:12]} Kf4 {[%emt 0:00:11]} 46. Kd3 {[%emt 0:04:06]} Kg3 {[%emt 0:16:42]} 0-1